Cogmind - Beta 14 @@@ ROGUE MODE // 2024.08.08 @ 20:39:43 Player: Cart123 Result: Destroyed by H-66 Slayer with Gauss Rifle Performance ------------- Evolutions (1) 500 Regions Visited (5) 1000 Robots Destroyed (20) 100 Value Destroyed (470) 470 Prototype IDs (0) 0 Alien Tech Used (0) 0 Bonus (0) 0 TOTAL SCORE: 2070 Bonus ------- None Cogmind --------- Core Integrity 0/400 Matter 390/400 Energy 120/250 System Corruption 0% Temperature Cool (0) Movement Core (100) Ox1 Location -6/Proximity Caves Parts ------- > --- POWER (1) -------- Ion Engine > --- PROPULSION (2) --- (None) > --- UTILITY (4) ------ Small Storage Unit Medium Matter Pod Weight Redist. System ECM Suite > --- WEAPON (2) ------- Heavy Laser > --- INVENTORY (8) ---- Compact Battery (18) Structural Scanner Tractor Beam Trap Extractor (0/4) Mace Mining Claw Peak State ------------ > --- POWER ------------ Ion Engine > --- PROPULSION ------- Medium Treads Aluminum Leg > --- UTILITY ---------- Small Storage Unit Medium Matter Pod Weight Redist. System ECM Suite > --- WEAPON ----------- Heavy Laser > --- INVENTORY -------- Compact Battery Structural Scanner Tractor Beam Trap Extractor Mace Mining Claw [Rating: 16] Favorites ----------- Power Ion Engine Engine Ion Engine Propulsion Aluminum Leg Treads Light Treads Leg Aluminum Leg Utility Small Storage Unit Device ECM Suite Storage Small Storage Unit Processor Signal Interpreter Weapon Medium Laser Energy Gun Medium Laser Ballistic Gun Battle Rifle Ballistic Cannon Light Cannon Slashing Weapon Mining Claw Build | -11 -10 -9 -9 -7 -6 ------- Run | Yrd Mat Mat Min Zio Pro Slots Evolved 2 | . . 2 . . . Power . | . . . . . . Propulsion . | . . . . . . Utility 2 | . . 2 . . . Weapon . | . . . . . . Parts Attached 31 | 6 1 14 1 1 8 Power 5 | 1 . 2 . . 2 Engine 5 | 1 . 2 . . 2 Core . | . . . . . . Reactor . | . . . . . . Propulsion 7 | 2 . 4 . . 1 Treads 5 | 2 . 2 . . 1 Leg 2 | . . 2 . . . Wheel . | . . . . . . Hover . | . . . . . . Flight . | . . . . . . Utility 6 | 1 1 2 . . 2 Device 2 | . . . . . 2 Storage 2 | 1 . 1 . . . Processor 2 | . 1 1 . . . Hackware . | . . . . . . Protection . | . . . . . . Artifact . | . . . . . . Weapon 13 | 2 . 6 1 1 3 Energy Gun 8 | 2 . 3 1 1 1 Energy Cannon . | . . . . . . Ballistic Gun 1 | . . . . . 1 Ballistic Cannon 1 | . . 1 . . . Launcher . | . . . . . . Special Weapon . | . . . . . . Impact Weapon . | . . . . . . Slashing Weapon 3 | . . 2 . . 1 Piercing Weapon . | . . . . . . Special Melee Weapon . | . . . . . . Unidentified Prototypes . | . . . . . . Parts Lost 8 | . . 1 . . 7 Power 1 | . . . . . 1 Propulsion 3 | . . . . . 3 Utility 1 | . . . . . 1 Weapon 3 | . . 1 . . 2 Highest Loss Streak 3 | . . 1 . . 3 To Critical Strikes . | . . . . . . Average Slot Usage (%) 95 | . 94 98 99 100 85 Engine 11 | . 14 11 11 11 10 Treads 10 | . 28 20 . . 2 Leg 11 | . . 1 22 22 17 Device 3 | . . . . . 13 Storage 20 | . 14 22 22 22 22 Processor 15 | . 8 22 22 22 4 Energy Gun 19 | . 28 17 18 22 12 Ballistic Cannon 1 | . . 2 3 . . Peak Build Rating 16 | 6 7 12 11 14 16 Average Rating 10 | 5 6 10 10 12 11 On Entrance 8 | . 6 7 10 11 14 Naked Turns . | . . . . . . Heaviest Build 22 | 14 14 16 16 18 22 Greatest Support 46 | 40 40 46 20 20 34 Greatest Overweight (x) 1 | . . . . . 1 Average Overweight (x) . | . . . . . . Largest Inventory Capacity 8 | 8 8 8 8 8 8 Average Capacity 7 | 7 8 8 8 8 8 Most Carried 8 | 4 8 8 8 8 8 Average Carried 6 | 3 5 6 7 7 6 Final Capacity 8 | 8 8 8 8 8 8 Final Carried 8 | 4 8 5 8 7 6 Class Distribution -------------------- 100% | Mutant Dominant Class ---------------- Mutant | -10/Materials Mutant | -9/Materials Mutant | -9/Mines Mutant | -7/Zion Mutant | -6/Proximity Caves Resources | -11 -10 -9 -9 -7 -6 ----------- Run | Yrd Mat Mat Min Zio Pro Matter Collected 629 | 208 157 143 71 10 40 Remotely . | . . . . . . Salvage Created 883 | . 147 367 49 . 320 Parts 33 | . 7 22 1 . 3 Haulers Intercepted . | . . . . . . Recyclers Shooed . | . . . . . . Parts Field Recycled . | . . . . . . Retrieved Matter . | . . . . . . Parts Self-Destructed 3 | . . . . . 3 Prevented . | . . . . . . Kills | -11 -10 -9 -9 -7 -6 ------- Run | Yrd Mat Mat Min Zio Pro Combat Hostiles Destroyed 12 | . 3 6 . . 3 Guns 8 | . 3 2 . . 3 Cannons 3 | . . 3 . . . Classes Destroyed 7 | . 2 4 . . 1 Worker 2 | . . 2 . . . Recycler 2 | . . 1 1 . . Drone 1 | . . . . . 1 Watcher 4 | . 1 3 . . . Swarmer 2 | . . 2 . . . Grunt 6 | . 3 1 . . 2 Sentry 3 | . . 3 . . . Best Kill Streak 4 | . 3 4 1 . 2 Combat Bots Only 3 | . 3 2 . . 2 Max Kills in Single Turn 1 | . 1 1 1 . 1 Gunslinging . | . . . . . . Exploded . | . . . . . . Melee . | . . . . . . Uniques/NPCs Destroyed . | . . . . . . Combat | -11 -10 -9 -9 -7 -6 -------- Run | Yrd Mat Mat Min Zio Pro Hostile Shots Fired 196 | . 12 115 . . 69 Missed 64 | . 4 32 . . 28 Damage Taken 1793 | . 86 956 . . 751 Core 412 | . 10 184 . . 218 Absorbed by Shields . | . . . . . . Core Remaining (%) 98 | 100 96 . . . . Volleys Fired 73 | 3 13 37 1 . 19 Largest 2 | 2 2 2 2 . 2 Hottest 119 | 100 100 100 75 . 119 Shots Fired 134 | 6 26 73 2 . 27 Gun 116 | 6 26 56 1 . 27 Cannon 18 | . . 17 1 . . Launcher . | . . . . . . Special . | . . . . . . Kinetic 18 | . . 17 1 . . Thermal 109 | 6 26 49 1 . 27 Explosive . | . . . . . . Electromagnetic 7 | . . 7 . . . Robot Hit Streak 10 | 3 5 10 4 . 5 Robot Miss Streak 6 | 1 3 6 1 . 5 Penetration Max . | . . . . . . Secondary Targets 1 | . 1 . . . . Max Gunslinging Chain 1 | . 1 . . . . Shots Hit Robots 84 | 5 15 37 1 . 26 Core Hits 31 | . 7 15 1 . 8 Critical Kills . | . . . . . . Critical Parts Destroyed . | . . . . . . Critical Strikes 8 | 1 1 6 . . . Burn 7 | 1 1 5 . . . Blast 1 | . . 1 . . . Melee Attacks 16 | . . 6 . . 10 Impact . | . . . . . . Slashing 16 | . . 6 . . 10 Piercing . | . . . . . . Sneak Attacks . | . . . . . . Combat Hostiles . | . . . . . . Follow-up Attacks . | . . . . . . Damage Inflicted 1552 | 72 186 615 29 . 650 Guns 974 | 61 186 406 10 . 311 Cannons 172 | . . 153 19 . . Explosions 39 | . . 39 . . . Melee 339 | . . . . . 339 Ramming 28 | 11 . 17 . . . Kinetic 172 | . . 153 19 . . Thermal 952 | 61 186 384 10 . 311 Explosive . | . . . . . . Electromagnetic 61 | . . 61 . . . Impact . | . . . . . . Slashing 339 | . . . . . 339 Piercing . | . . . . . . Highest Corruption 1 | . 1 . . . . Average Corruption 1 | . 1 . . . . Corruption Purged . | . . . . . . Corruption Blocked . | . . . . . . Overload Shots . | . . . . . . Overflow Damage 70 | . . 5 . . 65 Projectiles 5 | . . 5 . . . Explosions . | . . . . . . Melee 65 | . . . . . 65 Knockbacks 3 | . . 3 . . . Impact . | . . . . . . Kinetic 3 | . . 3 . . . Secondary . | . . . . . . Self-Inflicted Damage 32 | . . 32 . . . Shots 1 | . . 1 . . . Rammed 4 | 2 . 2 . . . Targets Rammed 5 | 2 . 3 . . . Kicked 1 | . . 1 . . . Crushed . | . . . . . . Highest Temperature 399 | 72 399 244 6 . 257 Average Temperature 94 | 36 152 66 4 . 111 Received Heat Transfer 357 | . 48 162 . . 147 Effects 1 | . 1 . . . . Energy Bleed 1 | . 1 . . . . Siege Activations . | . . . . . . Robots Corrupted . | . . . . . . Combat Hostiles . | . . . . . . Parts Fried . | . . . . . . Impact Corruptions . | . . . . . . Robots Melted 1 | . . 1 . . . Combat Hostiles 1 | . . 1 . . . Parts Melted 9 | . . 9 . . . Heat Transferred 2976 | 259 629 1397 25 . 666 Parts Sabotaged . | . . . . . . Parts Stolen . | . . . . . . Parts Stripped . | . . . . . . Power Chain Reactions 1 | . . 1 . . . Alert | -11 -10 -9 -9 -7 -6 ------- Run | Yrd Mat Mat Min Zio Pro Peak Influence 228 | . 117 228 5 . . Initial 49 | . . 49 . . . Average 73 | . 63 113 3 . . Maximum Alert Level 1 | . . 1 . . . Low Security (%) 94 | 100 100 88 100 . . Level 1 5 | . . 11 . . . Level 2 . | . . . . . . Level 3 . | . . . . . . Level 4 . | . . . . . . Level 5 . | . . . . . . High Security . | . . . . . . Max Security . | . . . . . . Squads Dispatched 2 | . 1 1 . . . Investigation 1 | . 1 . . . . Extermination . | . . . . . . Reinforcement 1 | . . 1 . . . Assault . | . . . . . . Garrison . | . . . . . . Intercept . | . . . . . . Searches Triggered . | . . . . . . Construction Impeded . | . . . . . . Haulers Reinforced . | . . . . . . Active Scanning Responses . | . . . . . . Cargo Convoy Interrupts . | . . . . . . Stealth | -11 -10 -9 -9 -7 -6 --------- Run | Yrd Mat Mat Min Zio Pro Distress Signals 2 | . . 1 . . 1 Communications Jammed . | . . . . . . Distress Signals . | . . . . . . Times Spotted 27 | . 5 15 . . 7 Peak Tracking Total 4 | . 3 4 . . 3 Tactical Retreats 1 | . . . . . 1 Traps | -11 -10 -9 -9 -7 -6 ------- Run | Yrd Mat Mat Min Zio Pro Traps Triggered 2 | . . 2 . . . Indirectly . | . . . . . . Trap Hack Attempts . | . . . . . . Triggered . | . . . . . . Disarmed . | . . . . . . Reprogrammed . | . . . . . . Reused . | . . . . . . Traps Extracted . | . . . . . . Installed . | . . . . . . Triggered 2 | . . . . . 2 Machines | -11 -10 -9 -9 -7 -6 ---------- Run | Yrd Mat Mat Min Zio Pro Machines Disabled . | . . . . . . Max in Single Turn . | . . . . . . Machines Repaired . | . . . . . . Machines Dismantled . | . . . . . . Machines Sabotaged . | . . . . . . Overloaded Fab Kills . | . . . . . . Hacking | -11 -10 -9 -9 -7 -6 --------- Run | Yrd Mat Mat Min Zio Pro Machines Accessed 7 | . 3 4 . . . Terminals 7 | . 3 4 . . . Fabricators . | . . . . . . Repair Stations . | . . . . . . Recycling Units . | . . . . . . Scanalyzers . | . . . . . . Garrison Access . | . . . . . . Total Hacks 23 | . 13 10 . . . Successful 7 | . 4 3 . . . Failed 16 | . 9 7 . . . Catastrophic 3 | . 1 2 . . . Database Lockouts . | . . . . . . Manual 4 | . . 4 . . . Terminals 23 | . 13 10 . . . Fabricators . | . . . . . . Repair Stations . | . . . . . . Recycling Units . | . . . . . . Scanalyzers . | . . . . . . Garrison Access . | . . . . . . Terminal Hacks 7 | . 4 3 . . . Record 3 | . 3 . . . . Unreport Threat 1 | . . 1 . . . Surveillance Status 1 | . 1 . . . . Recall Investigation 1 | . . 1 . . . Recall Reinforcements 1 | . . 1 . . . Fabricator Hacks . | . . . . . . Repair Station Hacks . | . . . . . . Recycling Unit Hacks . | . . . . . . Scanalyzer . | . . . . . . Garrison Access Hacks . | . . . . . . Unauthorized Hacks . | . . . . . . Terminals . | . . . . . . Fabricators . | . . . . . . Repair Stations . | . . . . . . Recycling Units . | . . . . . . Scanalyzers . | . . . . . . Garrison Access . | . . . . . . Data Cores Recovered . | . . . . . . Used . | . . . . . . Hacking Detections 6 | . 3 3 . . . Full Trace Events 3 | . 2 1 . . . Feedback Events 1 | . 1 . . . . Corruption 1 | . 1 . . . . Feedback Blocked . | . . . . . . Robot Schematics Acquired 3 | . . . . 3 . Robots Built . | . . . . . . Authchips . | . . . . . . Time . | . . . . . . Total Robot Build Rating . | . . . . . . Part Schematics Acquired 15 | . . . . 15 . Parts Built . | . . . . . . Authchips . | . . . . . . Time . | . . . . . . Total Part Build Rating . | . . . . . . Parts Repaired . | . . . . . . Time . | . . . . . . Parts Recycled . | . . . . . . Recycled Matter . | . . . . . . Retrieved Matter . | . . . . . . Retrieved Components . | . . . . . . Parts Scanalyzed . | . . . . . . Part Schematics Acquired . | . . . . . . Parts Damaged . | . . . . . . Bothacking | -11 -10 -9 -9 -7 -6 ------------ Run | Yrd Mat Mat Min Zio Pro Used RIF Installer . | . . . . . . Robots Hacked . | . . . . . . Non-combat . | . . . . . . Combat . | . . . . . . Robot Hacks Applied . | . . . . . . Relay Couplers Released . | . . . . . . Fabnet Peak Effective % . | . . . . . . Robots Rewired . | . . . . . . Allies Hacked . | . . . . . . Hacks Repelled . | . . . . . . Allies | -11 -10 -9 -9 -7 -6 -------- Run | Yrd Mat Mat Min Zio Pro Total Allies . | . . . . . . Largest Group . | . . . . . . Highest-Rated Group . | . . . . . . Highest-Rated Ally . | . . . . . . Total Orders . | . . . . . . Ally Attacks . | . . . . . . Total Damage . | . . . . . . Kills . | . . . . . . Allies Corrupted . | . . . . . . Allies Melted . | . . . . . . Intel | -11 -10 -9 -9 -7 -6 ------- Run | Yrd Mat Mat Min Zio Pro Robot Analysis Total . | . . . . . . Derelict Logs Recovered 2 | . . . . 1 1 Drone Launches . | . . . . . . Drone Recoveries . | . . . . . . Exploration | -11 -10 -9 -9 -7 -6 ------------- Run | Yrd Mat Mat Min Zio Pro Turns Passed 2244 | 162 305 629 142 496 510 Spaces Moved 1366 | 89 158 304 112 411 292 Core 29 | 7 . . . . 22 Treads 564 | 82 158 266 . . 58 Legs 773 | . . 38 112 411 212 Wheels . | . . . . . . Hover . | . . . . . . Flight . | . . . . . . Fastest Speed 50 | 50 160 120 120 120 100 Average Speed 138 | 151 160 155 120 120 140 Slowest Speed 190 | 160 160 160 120 120 190 Overloaded Moves . | . . . . . . Propulsion Burnouts . | . . . . . . Robots Hopped . | . . . . . . Cave-ins Triggered . | . . . . . . Exploration Rate (%) 27 | 5 29 24 19 45 42 Regions Visited 5 Branch Regions 3 Pre-discovered Areas 1 | . . . . . 1 Known Exits Taken 4 | . 1 1 1 1 . Unknown Exits Taken 1 | 1 . . . . . Scrap Searched 5 | . . . 2 2 1 Spaces Dug 2 | . . 2 . . . Terrain Destroyed 4 | . . 4 . . . Melee 2 | . . 2 . . . Projectile . | . . . . . . AOE 2 | . . 2 . . . Terrain Rammed . | . . . . . . Walls Destroyed . | . . . . . . Machines Disabled . | . . . . . . Actions | -11 -10 -9 -9 -7 -6 --------- Run | Yrd Mat Mat Min Zio Pro Total 1546 | 109 184 375 118 415 345 Wait 18 | . 8 . . . 10 Move 1361 | 88 157 303 111 410 292 Hop . | . . . . . . Pick Up 29 | 10 5 5 4 1 4 Fast Attach . | . . . . . . Attach 16 | 6 1 4 1 . 4 Detach . | . . . . . . Swap 15 | . . 10 . 1 4 Drop 12 | . . 7 1 3 1 Fire 73 | 3 13 37 1 . 19 Melee 16 | . . 6 . . 10 Ram . | . . . . . . Kick 1 | . . 1 . . . Crush 4 | 2 . 2 . . . Escape Stasis . | . . . . . . Rewire 1 | . . . . . 1 Trap . | . . . . . . Miscellaneous . | . . . . . . Route ------- -11/Scrapyard -10/Materials (discovered 2 exits: *Mat / [*Min]) -9/Materials -9/Mines (discovered 2 exits: *Mat / *Zio) -7/Zion -6/Proximity Caves History --------- Turn | Location | Event 11 | -11/Scrapyard | Discovered new exit (range 14) 163 | -11/Scrapyard | Entered Materials 200 | -10/Materials | Discovered new exit (range 15) 317 | -10/Materials | Build established: Mutant 408 | -10/Materials | Discovered new exit (range 4) 420 | -10/Materials | Identified exit to Materials 468 | -10/Materials | Entered another Materials area 468 | -9/Materials | Evolved 2 slots: Utility x2 1084 | -9/Materials | Discovered new exit (range 9) 1096 | -9/Materials | Identified exit to Mines 1097 | -9/Materials | Entered Mines 1224 | -9/Mines | Discovered new exit (range 5) 1226 | -9/Mines | A Derelict revealed a hidden shortcut to a safe place 1227 | -9/Mines | Identified exit to Materials 1230 | -9/Mines | Identified exit to Zion 1239 | -9/Mines | Entered Zion 1425 | -7/Zion | Learned 4 Factory zone layouts 1712 | -7/Zion | Discovered new exit (range 17) 1734 | -7/Zion | Identified exit to Proximity Caves 1735 | -7/Zion | Entered Proximity Caves 1738 | -6/Proximity Caves | Spotter reported a threat 1920 | -6/Proximity Caves | Spotted B-75 Beast 1928 | -6/Proximity Caves | Core integrity fell below 50% 1961 | -6/Proximity Caves | Lost 3 parts (1p1u1w) 2204 | -6/Proximity Caves | Core integrity fell below 20% 2245 | -6/Proximity Caves | Destroyed by H-66 Slayer with Gauss Rifle Last Messages --------------- G-50 Soldier heat damages core (-13). G-50 Soldier overheating. G-50 Soldier destroyed. G-50 Soldier overheating. G-50 Soldier heat short circuits Carbon-fiber Leg. G-50 Soldier overheating. G-50 Soldier destroyed. Adv. Heat Sink fries itself beyond repair. Acquired 10 matter. Acquired Com. Battery. Acquired Med. Treads. Penetrated by Slug. Med. Treads destroyed. Penetrated by Slug. Slug penetrates Wall. Penetrated by Slug. Aluminum Leg destroyed. Penetrated by Slug. Slug penetrates Wall. Map ----- +----------------------------------------------------+ | ??????????? ???????????### % #?????? | | ??????????## ???????###??### % #??????? | | ??????????? ??????? #????## ##### #???#??? | | ???????????? ??????# #??#### ####?# ##??# | | ?????????????# #?????# #??# ### ###??# | | ?????????????# #????# #??# ! ## ##### | | ?????????????# #???# #??# %% % | | ?????????????# #?## #### ### | | ???????####### ## #### #?# ??? | | ?????? ##??# ## #????? | | ??????? ## ! #??## #?????? | | ???????? #### #### %! ##?## ##?????? | | ?????? ????### #??## ##?## #??????? | | ????? ### ##########??# #??????? | | ????? ### #?????## #####??????? | | ????? ## #?????# ##?????????? | | ????? ##???## ##????????? | | ??????### ##??# ##???????? | | ????????# ##?## #???????? | | ????????# #??# #???????? | | ????????# ## h #??# ### #???????? | | ????????## ## ####h ##??# #??## #???????? | | ?????????## ?####??# #???##????# #???????? | | ??????????## ??????## ##????????# ##??????? | | ???????????## ???????# #????????# ##?????? | | ????????????# ???????# @ #????????# #?????? | | ???????????? ????????## #????????## #?????? | | ??????????? ??????????# #?????????## ##?????? | | ??????????? ????????????## ##??????????###??????? | | ?????????????????????????####????????????????????? | | ?????????????????????????????????????????????????? | | ?????????????????????????????????????????????????? | | ?????????????????????????????????????????????????? | | ?????????????????????????????????????????????????? | | ?????????????????????????????????????????????????? | | ?????????????????????????????????????????????????? | | ?????????????????????????????????????????????????? | | ?????????????????????????????????????????????????? | | ?????????????????????????????????????????????????? | | ?????????????????????????????????????????????????? | | ?????????????????????????????????????????????????? | | ?????????????????????????????????????????????????? | | ?????????????????????????????????????????????????? | | ?????????????????????????????????????????????????? | | ?????????????????????????????????????????????????? | | ?????????????????????????????????????????????????? | | ?????????????????????????????????????????????????? | | ?????????????????????????????????????????????????? | | | | | +----------------------------------------------------+ Best States ------------- Heat Dissipation 28 Energy Generation 18 Energy Capacity 250 Matter Stores 400 Matter Capacity 400 Sight Range 18 Terrain Scan Density 10 ECM Strength 1 Additional Mass Support 6 Evasion (%) 55 Recoil Reduction 2 Item Schematics ----------------- Transmission Jammer | -7/Zion | Archive Lrn. Missile Launcher | -7/Zion | Archive Core Analyzer | -7/Zion | Archive Stasis Canceller | -7/Zion | Archive Gravmag System | -7/Zion | Archive Force Field | -7/Zion | Archive Adv. Assault Cannon | -7/Zion | Archive Enh. Gauss Cannon | -7/Zion | Archive Antigrav System | -7/Zion | Archive Imp. Trap Extractor | -7/Zion | Archive Plasma Rifle | -7/Zion | Archive Remote Datajack | -7/Zion | Archive Lgt. Angular Momentum Engine | -7/Zion | Archive Fusion Compressor | -7/Zion | Archive Microactuators | -7/Zion | Archive Robot Schematics ------------------ S-27 Virus | -7/Zion | Archive K-01 Serf | -7/Zion | Archive L-41 Fighter | -7/Zion | Archive Fabricated ------------ Nothing Alien Tech Used ----------------- None Achievements -------------- Crack Shot Robot Respite Tourist Challenges ------------ None Game ------ Seed ChromaticBiometalTrap Manual? 0 Play Time 00:26:37 Cumulative 1.6 hours Start 2024.08.07 @ 21:43:29 End 2024.08.08 @ 20:39:43 Sessions 3 Manual Loads 0 Difficulty Rogue Special Mode None Game No. 2 Rogue 2 Adventurer 0 Explorer 0 Win Type - Total 0 Types 0/0/0/0/0/0/0/0/0 Lore% 0 Gallery% 4 Achievement% 4 Wizard Run 0 Options --------- Layout 1 ASCII 0 Keyboard 0 Movement Arrows Keybinds 0 Fullscreen 1 Font 24/Smallcaps Map View 25x17 Zoom Use 95% Tactical HUD 0 Map Filters NONE Filters NONE Steam 1 RUN: cc68c480-22c2-44ef-9f6e-9d5c3d315a06